Cogmind - Beta 14 *** ADVENTURER MODE // 2025.03.21 @ 20:24:08 Player: crsstev Result: Destroyed by as-03539 with Assembled Blade Performance ------------- Evolutions (0) 0 Regions Visited (2) 400 Robots Destroyed (22) 110 Value Destroyed (538) 538 Prototype IDs (4) 80 Alien Tech Used (0) 0 Bonus (0) 0 TOTAL SCORE: 1128 Bonus ------- None Cogmind --------- Core Integrity 0/250 Matter 283/300 Energy 160/160 System Corruption 1% Temperature Cool (0) Movement Flying (194) Ox2 Location -10/Mines Parts ------- > --- POWER (1) -------- Light Nuclear Core > --- PROPULSION (2) --- Flight Unit Cesium-ion Thruster > --- UTILITY (2) ------ Medium Storage Unit > --- WEAPON (2) ------- Assault Rifle Shock Bomb Launcher > --- INVENTORY (10) --- Visual Processing Unit Signal Interpreter Reaction Control System Hacking Suite Shock Rifle Mining Laser Peak State ------------ > --- POWER ------------ Light Angular Momentum Engine > --- PROPULSION ------- Aluminum Leg Carbon-fiber Leg > --- UTILITY ---------- Medium Storage Unit Targeting Computer > --- WEAPON ----------- Beamcaster Assault Rifle > --- INVENTORY -------- Light Nuclear Core Flight Unit Cesium-ion Thruster Visual Processing Unit Signal Interpreter Shock Rifle Assault Rifle Shock Bomb Launcher Mining Laser [Rating: 18] Favorites ----------- Power Light Nuclear Core Engine Light Ion Engine Power Core Light Nuclear Core Propulsion Aluminum Leg Leg Aluminum Leg Flight Unit Cesium-ion Thruster Utility Medium Storage Unit Device Weight Redist. System Storage Medium Storage Unit Processor Targeting Computer Weapon Assault Rifle Energy Gun Beamcaster Energy Cannon Beam Cannon Ballistic Gun Assault Rifle Launcher Shock Bomb Launcher Build | -11 -10 -10 ------- Run | Yrd Mat Min Slots Evolved . | . . . Power . | . . . Propulsion . | . . . Utility . | . . . Weapon . | . . . Parts Attached 28 | 6 12 10 Power 7 | 1 3 3 Engine 4 | 1 2 1 Core 3 | . 1 2 Reactor . | . . . Propulsion 10 | 2 4 4 Treads . | . . . Leg 8 | 2 4 2 Wheel . | . . . Hover . | . . . Flight 2 | . . 2 Utility 4 | 1 3 . Device 1 | . 1 . Storage 2 | 1 1 . Processor 1 | . 1 . Hackware . | . . . Protection . | . . . Artifact . | . . . Weapon 7 | 2 2 3 Energy Gun 1 | . . 1 Energy Cannon 1 | . 1 . Ballistic Gun 4 | 2 1 1 Ballistic Cannon . | . . . Launcher 1 | . . 1 Special Weapon . | . . . Impact Weapon . | . . . Slashing Weapon . | . . . Piercing Weapon . | . . . Special Melee Weapon . | . . . Unidentified Prototypes . | . . . Parts Lost 8 | . 2 6 Power 2 | . 1 1 Propulsion 2 | . . 2 Utility 1 | . . 1 Weapon 3 | . 1 2 Highest Loss Streak 6 | . 1 6 To Critical Strikes . | . . . Average Slot Usage (%) 92 | . 93 92 Engine 6 | . 8 4 Core 7 | . 5 9 Leg 25 | . 27 23 Flight 1 | . . 2 Storage 14 | . 14 14 Processor 9 | . 8 11 Energy Gun 2 | . . 4 Energy Cannon 9 | . 10 7 Ballistic Gun 14 | . 17 12 Peak Build Rating 18 | 6 9 18 Average Rating 9 | 4 7 11 On Entrance 5 | . 6 9 Naked Turns . | . . . Heaviest Build 26 | 12 20 26 Greatest Support 26 | 20 26 25 Greatest Overweight (x) 6 | . 6 4 Average Overweight (x) . | . . . Largest Inventory Capacity 10 | 8 10 10 Average Capacity 9 | 6 9 10 Most Carried 10 | 4 10 10 Average Carried 6 | 2 6 8 Final Capacity 10 | 8 10 10 Final Carried 8 | 2 8 6 Class Distribution -------------------- 84% | Mutant 15% | Scavenger-Mutant Dominant Class ---------------- Mutant | -10/Materials Mutant | -10/Mines Resources | -11 -10 -10 ----------- Run | Yrd Mat Min Matter Collected 662 | 171 299 192 Remotely . | . . . Salvage Created 831 | . 430 401 Parts 46 | . 32 14 Haulers Intercepted 2 | . 2 . Recyclers Shooed . | . . . Parts Field Recycled . | . . . Retrieved Matter . | . . . Parts Self-Destructed . | . . . Prevented . | . . . Kills | -11 -10 -10 ------- Run | Yrd Mat Min Combat Hostiles Destroyed 18 | . 8 10 Guns 10 | . 5 5 Cannons 6 | . 3 3 AOE 2 | . . 2 Classes Destroyed 8 | . 5 3 Worker 1 | . . 1 Builder 1 | . 1 . Hauler 2 | . 2 . Recycler 1 | . . 1 Watcher 2 | . 2 . Swarmer 3 | . 3 . Grunt 12 | . 5 7 Assembled 3 | . . 3 Best Kill Streak 3 | . 3 3 Combat Bots Only 3 | . 3 3 Max Kills in Single Turn 1 | . 1 1 Gunslinging . | . . . Exploded 1 | . . 1 Melee . | . . . Uniques/NPCs Destroyed . | . . . Combat | -11 -10 -10 -------- Run | Yrd Mat Min Hostile Shots Fired 110 | . 57 53 Missed 29 | . 14 15 Damage Taken 1149 | . 395 754 Core 260 | . 43 217 Absorbed by Shields . | . . . Ignored by Resistances 336 | . 117 219 Core Remaining (%) 100 | 100 . . Volleys Fired 62 | . 35 27 Largest 2 | . 2 2 Hottest 95 | . 80 95 Shots Fired 112 | . 67 45 Gun 70 | . 41 29 Cannon 39 | . 26 13 Launcher 3 | . . 3 Special . | . . . Kinetic 63 | . 41 22 Thermal 46 | . 26 20 Explosive . | . . . Electromagnetic 3 | . . 3 Robot Hit Streak 14 | . 14 7 Robot Miss Streak 2 | . 2 2 Penetration Max . | . . . Secondary Targets . | . . . Shots Hit Robots 79 | . 50 29 Core Hits 39 | . 20 19 Critical Kills . | . . . Critical Parts Destroyed . | . . . Critical Strikes . | . . . Melee Attacks . | . . . Impact . | . . . Slashing . | . . . Piercing . | . . . Sneak Attacks . | . . . Combat Hostiles . | . . . Follow-up Attacks . | . . . Damage Inflicted 1514 | . 758 756 Guns 685 | . 371 314 Cannons 579 | . 387 192 Explosions 250 | . . 250 Melee . | . . . Ramming . | . . . Kinetic 558 | . 371 187 Thermal 856 | . 387 469 Explosive . | . . . Electromagnetic 100 | . . 100 Impact . | . . . Slashing . | . . . Piercing . | . . . Highest Corruption 1 | . . 1 Average Corruption 1 | . . 1 Corruption Purged . | . . . Corruption Blocked . | . . . Effects 3 | . . 3 Message Errors 2 | . . 2 Matter Fused 1 | . . 1 Overload Shots . | . . . Overflow Damage 2 | . 2 . Projectiles 2 | . 2 . Explosions . | . . . Melee . | . . . Knockbacks . | . . . Impact . | . . . Kinetic . | . . . Secondary . | . . . Self-Inflicted Damage . | . . . Shots . | . . . Rammed . | . . . Targets Rammed . | . . . Kicked . | . . . Crushed . | . . . Highest Temperature 189 | . 189 167 Average Temperature 60 | . 60 59 Received Heat Transfer 375 | . 264 111 Siege Activations . | . . . Robots Corrupted . | . . . Combat Hostiles . | . . . Parts Fried . | . . . Impact Corruptions . | . . . Robots Melted . | . . . Combat Hostiles . | . . . Parts Melted 1 | . 1 . Heat Transferred 1693 | . 814 879 Parts Sabotaged . | . . . Parts Stolen . | . . . Parts Stripped . | . . . Power Chain Reactions 2 | . . 2 Alert | -11 -10 -10 ------- Run | Yrd Mat Min Peak Influence 182 | . 182 134 Initial 24 | . . 24 Average 67 | . 87 52 Maximum Alert Level . | . . . Low Security (%) 100 | 100 100 100 Level 1 . | . . . Level 2 . | . . . Level 3 . | . . . Level 4 . | . . . Level 5 . | . . . High Security . | . . . Max Security . | . . . Squads Dispatched 1 | . . 1 Investigation 1 | . . 1 Extermination . | . . . Reinforcement . | . . . Assault . | . . . Garrison . | . . . Intercept . | . . . Searches Triggered . | . . . Construction Impeded . | . . . Haulers Reinforced . | . . . Active Scanning Responses . | . . . Cargo Convoy Interrupts . | . . . Stealth | -11 -10 -10 --------- Run | Yrd Mat Min Distress Signals 1 | . 1 . Communications Jammed . | . . . Distress Signals . | . . . Times Spotted 40 | . 12 28 Peak Tracking Total 13 | . 3 13 Tactical Retreats 2 | . . 2 Traps | -11 -10 -10 ------- Run | Yrd Mat Min Traps Triggered 1 | . 1 . Indirectly . | . . . Trap Hack Attempts . | . . . Triggered . | . . . Disarmed 6 | . 6 . Reprogrammed . | . . . Reused . | . . . Traps Extracted . | . . . Installed . | . . . Triggered . | . . . Machines | -11 -10 -10 ---------- Run | Yrd Mat Min Machines Disabled . | . . . Max in Single Turn . | . . . Machines Repaired . | . . . Machines Dismantled . | . . . Machines Sabotaged . | . . . Overloaded Fab Kills . | . . . Hacking | -11 -10 -10 --------- Run | Yrd Mat Min Machines Accessed 6 | . 5 1 Terminals 4 | . 4 . Fabricators . | . . . Repair Stations . | . . . Recycling Units 1 | . 1 . Scanalyzers . | . . . Garrison Access . | . . . Total Hacks 13 | . 12 1 Successful 7 | . 6 1 Failed 6 | . 6 . Catastrophic 2 | . 2 . Database Lockouts . | . . . Manual 5 | . 5 . Terminals 11 | . 11 . Fabricators . | . . . Repair Stations . | . . . Recycling Units 1 | . 1 . Scanalyzers . | . . . Garrison Access . | . . . Terminal Hacks 6 | . 5 1 Prototype ID Bank 2 | . 2 . Open Door 1 | . . 1 Branch Access Points 1 | . 1 . Disarm Traps 1 | . 1 . Zone Layout 1 | . 1 . Fabricator Hacks . | . . . Repair Station Hacks . | . . . Recycling Unit Hacks 1 | . 1 . Retrieve Components 1 | . 1 . Scanalyzer . | . . . Garrison Access Hacks . | . . . Unauthorized Hacks . | . . . Terminals . | . . . Fabricators . | . . . Repair Stations . | . . . Recycling Units . | . . . Scanalyzers . | . . . Garrison Access . | . . . Data Cores Recovered . | . . . Used . | . . . Hacking Detections 1 | . 1 . Full Trace Events 1 | . 1 . Feedback Events . | . . . Feedback Blocked . | . . . Robot Schematics Acquired . | . . . Robots Built . | . . . Authchips . | . . . Time . | . . . Total Robot Build Rating . | . . . Part Schematics Acquired . | . . . Parts Built . | . . . Authchips . | . . . Time . | . . . Total Part Build Rating . | . . . Parts Repaired . | . . . Time . | . . . Parts Recycled . | . . . Recycled Matter . | . . . Retrieved Matter . | . . . Retrieved Components 3 | . 3 . Parts Scanalyzed . | . . . Part Schematics Acquired . | . . . Parts Damaged . | . . . Bothacking | -11 -10 -10 ------------ Run | Yrd Mat Min Used RIF Installer . | . . . Robots Hacked . | . . . Non-combat . | . . . Combat . | . . . Robot Hacks Applied . | . . . Relay Couplers Released . | . . . Fabnet Peak Effective % . | . . . Robots Rewired . | . . . Allies Hacked . | . . . Hacks Repelled . | . . . Allies | -11 -10 -10 -------- Run | Yrd Mat Min Total Allies 3 | . . 3 Largest Group 3 | . . 3 Highest-Rated Group 40 | . . 40 Highest-Rated Ally 16 | . . 16 Total Orders . | . . . Ally Attacks 20 | . . 20 Total Damage 221 | . . 221 Kills 2 | . . 2 Allies Corrupted . | . . . Allies Melted . | . . . Intel | -11 -10 -10 ------- Run | Yrd Mat Min Robot Analysis Total . | . . . Derelict Logs Recovered 1 | . . 1 Drone Launches . | . . . Drone Recoveries . | . . . Exploration | -11 -10 -10 ------------- Run | Yrd Mat Min Turns Passed 1493 | 68 722 703 Spaces Moved 938 | 53 468 417 Core 30 | 12 1 17 Treads . | . . . Legs 885 | 41 467 377 Wheels . | . . . Hover . | . . . Flight 23 | . . 23 Fastest Speed 50 | 50 120 120 Average Speed 130 | 104 120 143 Slowest Speed 350 | 120 350 250 Overloaded Moves . | . . . Propulsion Burnouts . | . . . Robots Hopped . | . . . Cave-ins Triggered . | . . . Exploration Rate (%) 56 | 4 87 77 Regions Visited 2 Branch Regions 1 Pre-discovered Areas . | . . . Known Exits Taken 1 | . 1 . Unknown Exits Taken 1 | 1 . . Scrap Searched 1 | . . 1 Spaces Dug . | . . . Terrain Destroyed 2 | . . 2 Melee . | . . . Projectile . | . . . AOE 2 | . . 2 Terrain Rammed . | . . . Walls Destroyed . | . . . Machines Disabled . | . . . Actions | -11 -10 -10 --------- Run | Yrd Mat Min Total 1105 | 66 561 478 Wait 23 | . 16 7 Move 936 | 52 467 417 Hop . | . . . Pick Up 39 | 8 21 10 Fast Attach . | . . . Attach 23 | 6 8 9 Detach . | . . . Swap 5 | . 4 1 Drop 17 | . 10 7 Fire 62 | . 35 27 Melee . | . . . Ram . | . . . Kick . | . . . Crush . | . . . Escape Stasis . | . . . Rewire . | . . . Trap . | . . . Miscellaneous . | . . . Route ------- -11/Scrapyard -10/Materials (discovered 4 exits: [*Mat x2] / *Min x2) -10/Mines (discovered 3 exits: [*Mat x2] / [*Sub]) History --------- Turn | Location | Event 9 | -11/Scrapyard | Discovered new exit (range 15) 69 | -11/Scrapyard | Entered Materials 71 | -10/Materials | Identified exit to Mines 307 | -10/Materials | Build established: Mutant 440 | -10/Materials | Discovered new exit (range 16) 646 | -10/Materials | Discovered new exit (range 16) 791 | -10/Materials | Entered Mines 817 | -10/Mines | Learned 4 Materials zone layouts 1084 | -10/Mines | Discovered new exit (range 12) 1143 | -10/Mines | Assisted by bots powering up and referring to "LRC-V3" 1146 | -10/Mines | Discovered new exit (range 10) 1167 | -10/Mines | Met a Derelict who couldn't figure out how to use a Trap Extractor 1298 | -10/Mines | Discovered new exit (range 10) 1332 | -10/Mines | Assembled infested the area 1381 | -10/Mines | Core integrity fell below 50% 1386 | -10/Mines | Met a Derelict shopkeep closing up shop 1402 | -10/Mines | Lost 3 allies 1408 | -10/Mines | Core integrity fell below 20% 1422 | -10/Mines | Lost 6 parts (1p2n1u2w) 1494 | -10/Mines | Destroyed by as-03539 with Assembled Blade Last Messages --------------- U-05 Engineer lays Concrete. The unstable cave ceiling collapses. U-05 Engineer builds a Wall. The unstable cave ceiling collapses. U-05 Engineer lays Concrete. Chain reaction triggered in Corrupted Lgt. Deuterium Engine. G-34 Mercenary destroyed. Chain reaction triggered in Corrupted Lgt. Ion Engine. G-34 Mercenary destroyed. K-01 Serf collects debris. 1IEC8IABAZIZ0FTQQXNEFH48HL,NFWO2 Acquired 32 matter. Acquired 11 matter. U-05 Engineer lays Concrete. Acquired 22 matter. U-05 Engineer lays Concrete. R-06 Scavenger collects Aluminum Leg. U-05 Engineer builds a Wall. Z6TADSOOXHNR> 28SOYGP0EV6P PN U-05 Engineer builds a Wall. Map ----- +----------------------------------------------------+ | ???????????????????????????? ## | | ???????????????????????????? | | ???????????????? #????????? | | ???????????????? #?????????? | | ???????????????? #?????????????? | | ???########???? #????????????????? | | ???#""""""#???? !##???????????????? | | ???#!![=] #????|%*##??????????????? | | ????# ##???? = ##?????????????? | | ????# !#????# ##????????????? | | ???###"" ##### #????????????? | | ???# X # $ ####?????????? | | ?### # ??????????? | | ?# # ## #?????????????? | | ?# #### #?????????????? | | ?# # ## # ###????????????# | | ?# == # #??????????### | | ?# !% # #????# ##### | | ?# ## * = ##????? | | ?# # = #????????# | | ?# # = % ##???????## | | ?######## ## [= ###??????## | | ??????##u#####|! ##?????# | | ??????# ## ##????# | | ??????# / "%" #???# | | ??????# @a/ #???## | | ??????# # * " ##????## | | ??????#######!%| #### #??## | | ????????????# ! % % #???# | | ????????????## * * #???## | | ?????????????# ##!%= ####????## | | ????????????##% ##?##=###???????## | | ????????????# #???# #????????## | | ???????????## #???# #???????## | | ??????###### #???# #????#### | | ?????## ##### ###### | | ?????# ### | | ?????# #?### | | ?????## # # ###############???? | | ??????##### ####?????????????????? | | ??????????# #????????????????????? | | ??????????# #########????????????? | | ??????????# #????????????? | | ??????????########## #????????????? | | ???????????????????# #????????????? | | ???????????????????# #????????????? | | ???????????????????# ######???????? | | ???????????????????# #???????? | | ???????????????????##### #??????## | | ?????????????########??# #????###" | +----------------------------------------------------+ Best States ------------- Heat Dissipation 25 Energy Generation 18 Energy Capacity 250 Matter Stores 300 Matter Capacity 300 Sight Range 16 Terrain Scan Density 10 Additional Mass Support 6 Resistance: KI 20 Resistance: TH 20 Resistance: EX 20 Resistance: EM 20 Resistance: I 20 Resistance: S 20 Resistance: P 20 Evasion (%) 55 Targeting Accuracy 5 Offensive Hacking 10 Item Schematics ----------------- None Robot Schematics ------------------ None Fabricated ------------ Nothing Alien Tech Used ----------------- None Achievements -------------- None Challenges ------------ None Game ------ Seed IntegratedExpertThruster Manual? 0 Play Time 00:18:26 Cumulative 8.4 hours Start 2025.03.21 @ 20:06:13 End 2025.03.21 @ 20:24:08 Sessions 1 Manual Loads 0 Difficulty Adventurer Special Mode None Game No. 10 Rogue 0 Adventurer 10 Explorer 0 Win Type - Total 0 Types 0/0/0/0/0/0/0/0/0 Lore% 8 Gallery% 14 Achievement% 14 Wizard Run 0 Options --------- Layout 0 ASCII 0 Keyboard 0 Movement Mouse Keybinds 0 Fullscreen 2 Font 24/Smallcaps Map View 76x50 Zoom Use 0% Tactical HUD 0 Map Filters NONE Filters NONE Steam 1 RUN: d620d59e-4007-4ea1-aa62-01008e436a60